[Event "Live Chess"]
[Site "Chess.com"]
[Date "2023.05.21"]
[Round "-"]
[White "Dhaydon19"]
[Black "KeithArkell"]
[Result "1/2-1/2"]
[WhiteElo "2687"]
[BlackElo "2466"]
[TimeControl "300"]
[EndTime "9:01:20 PDT"]
[Termination "Game drawn by repetition"]

1. d4 {[%clk 0:04:57.4]} 1... e6 {[%clk 0:04:59]} 2. Nf3 {[%clk 0:04:56.1]} 2...
Nf6 {[%clk 0:04:58.1]} 3. g3 {[%clk 0:04:53.6]} 3... b5 {[%clk 0:04:56.3]} 4.
Bg2 {[%clk 0:04:53]} 4... Bb7 {[%clk 0:04:55.8]} 5. O-O {[%clk 0:04:52.5]} 5...
c5 {[%clk 0:04:55.2]} 6. c3 {[%clk 0:04:51.8]} 6... Be7 {[%clk 0:04:54]} 7. Nbd2
{[%clk 0:04:50.2]} 7... O-O {[%clk 0:04:52.7]} 8. Qc2 {[%clk 0:04:49.4]} 8... d5
{[%clk 0:04:51.1]} 9. dxc5 {[%clk 0:04:48.2]} 9... Bxc5 {[%clk 0:04:50]} 10. Ne5
{[%clk 0:04:47.7]} 10... Nbd7 {[%clk 0:04:48.1]} 11. Nxd7 {[%clk 0:04:46.6]}
11... Qxd7 {[%clk 0:04:46.6]} 12. e4 {[%clk 0:04:46.3]} 12... dxe4 {[%clk
0:04:45.1]} 13. Nxe4 {[%clk 0:04:45.4]} 13... Nxe4 {[%clk 0:04:44.3]} 14. Bxe4
{[%clk 0:04:45.1]} 14... Bxe4 {[%clk 0:04:43]} 15. Qxe4 {[%clk 0:04:44.8]} 15...
Rfd8 {[%clk 0:04:40.9]} 16. Re1 {[%clk 0:04:40.9]} 16... Qd5 {[%clk 0:04:39.5]}
17. Qe2 {[%clk 0:04:37.4]} 17... a6 {[%clk 0:04:38]} 18. Be3 {[%clk 0:04:35.6]}
18... Bxe3 {[%clk 0:04:36.9]} 19. Qxe3 {[%clk 0:04:32.5]} 19... Qd2 {[%clk
0:04:35.2]} 20. Qe2 {[%clk 0:04:29]} 20... Qxe2 {[%clk 0:04:33.6]} 21. Rxe2
{[%clk 0:04:28.1]} 21... g5 {[%clk 0:04:32.3]} 22. Rc1 {[%clk 0:04:27]} 22...
Rd7 {[%clk 0:04:29.4]} 23. Rec2 {[%clk 0:04:26.6]} 23... Rad8 {[%clk 0:04:27.1]}
24. Kg2 {[%clk 0:04:25.8]} 24... g4 {[%clk 0:04:23.9]} 25. Kf1 {[%clk
0:04:24.8]} 25... Kg7 {[%clk 0:04:22.9]} 26. Ke2 {[%clk 0:04:24]} 26... h5
{[%clk 0:04:21.9]} 27. b3 {[%clk 0:04:22.4]} 27... Kf6 {[%clk 0:04:20.1]} 28.
Rb2 {[%clk 0:04:19.2]} 28... Ke5 {[%clk 0:04:17.4]} 29. c4 {[%clk 0:04:18.2]}
29... Rc7 {[%clk 0:04:16.2]} 30. Rbc2 {[%clk 0:04:16.5]} 30... Rdc8 {[%clk
0:04:15.3]} 31. Kd3 {[%clk 0:04:15.7]} 31... f5 {[%clk 0:04:12.3]} 32. cxb5
{[%clk 0:04:13]} 32... Rxc2 {[%clk 0:04:10.3]} 33. Rxc2 {[%clk 0:04:12.3]} 33...
Rd8+ {[%clk 0:04:06.4]} 34. Ke3 {[%clk 0:04:10.8]} 34... axb5 {[%clk 0:04:03.9]}
35. Rc5+ {[%clk 0:04:09.5]} 35... Rd5 {[%clk 0:04:00]} 36. Rxd5+ {[%clk
0:04:08.3]} 36... Kxd5 {[%clk 0:03:59.2]} 37. a3 {[%clk 0:04:06.3]} 37... e5
{[%clk 0:03:57.2]} 38. Kd3 {[%clk 0:04:05.3]} 38... Kc5 {[%clk 0:03:54.6]} 39.
Ke3 {[%clk 0:04:03.7]} 39... Kd5 {[%clk 0:03:53.8]} 40. Kd3 {[%clk 0:03:59.8]}
40... Kc5 {[%clk 0:03:52.8]} 41. a4 {[%clk 0:03:51]} 41... bxa4 {[%clk
0:03:48.7]} 42. bxa4 {[%clk 0:03:50]} 42... Kb4 {[%clk 0:03:46.9]} 43. a5 {[%clk
0:03:49]} 43... Kxa5 {[%clk 0:03:45.8]} 44. Kc4 {[%clk 0:03:48.4]} 44... f4
{[%clk 0:02:35.2]} 45. Kd5 {[%clk 0:03:46.5]} 45... Kb4 {[%clk 0:02:30.3]} 46.
Kxe5 {[%clk 0:03:45.1]} 46... f3 {[%clk 0:02:25.5]} 47. Kd4 {[%clk 0:02:58.4]}
47... Kb3 {[%clk 0:02:24.5]} 48. Kd3 {[%clk 0:02:57.3]} 48... Kb2 {[%clk
0:02:23.9]} 49. Kd2 {[%clk 0:02:56.4]} 49... Kb1 {[%clk 0:02:22.2]} 50. Kd1
{[%clk 0:02:55.4]} 50... Kb2 {[%clk 0:02:21.4]} 51. Kd2 {[%clk 0:02:54.7]} 51...
Kb1 {[%clk 0:02:20.6]} 52. Kd1 {[%clk 0:02:54]} 52... Kb2 {[%clk 0:02:20.2]} 53.
Kd2 {[%clk 0:02:53.1]} 1/2-1/2

[Event "Live Chess"]
[Site "Chess.com"]
[Date "2023.05.21"]
[Round "-"]
[White "Ed_Knox"]
[Black "Ferrarifan27"]
[Result "0-1"]
[WhiteElo "1472"]
[BlackElo "2051"]
[TimeControl "300"]
[EndTime "9:01:33 PDT"]
[Termination "Ferrarifan27 won by checkmate"]

1. d4 {[%clk 0:04:54.4]} 1... Nf6 {[%clk 0:04:58.5]} 2. Bf4 {[%clk 0:04:52.8]}
2... c5 {[%clk 0:04:56.9]} 3. e3 {[%clk 0:04:52.2]} 3... Qb6 {[%clk 0:04:54.9]}
4. Qc1 {[%clk 0:04:50.3]} 4... cxd4 {[%clk 0:04:50.9]} 5. exd4 {[%clk
0:04:40.1]} 5... Qxd4 {[%clk 0:04:49.6]} 6. Be3 {[%clk 0:04:38.9]} 6... Qe5
{[%clk 0:04:47.3]} 7. Nf3 {[%clk 0:04:36.7]} 7... Qa5+ {[%clk 0:04:44.6]} 8. Nc3
{[%clk 0:04:33.7]} 8... d5 {[%clk 0:04:41.3]} 9. Bd2 {[%clk 0:04:32.6]} 9... Qd8
{[%clk 0:04:36.4]} 10. Bb5+ {[%clk 0:04:27.5]} 10... Bd7 {[%clk 0:04:34.9]} 11.
Bxd7+ {[%clk 0:04:26.5]} 11... Nbxd7 {[%clk 0:04:34.8]} 12. O-O {[%clk
0:04:25.5]} 12... e6 {[%clk 0:04:33.8]} 13. Re1 {[%clk 0:04:24.5]} 13... Be7
{[%clk 0:04:32.5]} 14. Ne5 {[%clk 0:04:14.6]} 14... Nxe5 {[%clk 0:04:31.1]} 15.
Rxe5 {[%clk 0:04:13.5]} 15... O-O {[%clk 0:04:30.6]} 16. Bg5 {[%clk 0:04:08.9]}
16... h6 {[%clk 0:04:28.2]} 17. Bxf6 {[%clk 0:04:07.7]} 17... Bxf6 {[%clk
0:04:27.1]} 18. Re3 {[%clk 0:04:06.6]} 18... d4 {[%clk 0:04:26]} 19. Rg3 {[%clk
0:04:01.7]} 19... dxc3 {[%clk 0:04:24.4]} 20. Qxh6 {[%clk 0:04:00.4]} 20... cxb2
{[%clk 0:04:21.7]} 21. Rb1 {[%clk 0:03:58.9]} 21... Rc8 {[%clk 0:04:07.3]} 22.
Qh5 {[%clk 0:03:38.4]} 22... Rxc2 {[%clk 0:04:02.4]} 23. Rf1 {[%clk 0:03:29.7]}
23... Rc1 {[%clk 0:03:58.4]} 24. Rh3 {[%clk 0:03:27.9]} 24... Rxf1+ {[%clk
0:03:57.4]} 25. Kxf1 {[%clk 0:03:23.4]} 25... b1=Q+ {[%clk 0:03:56.7]} 26. Ke2
{[%clk 0:03:21.4]} 26... Qdd1+ {[%clk 0:03:56.1]} 27. Ke3 {[%clk 0:03:20.4]}
27... Qbd3+ {[%clk 0:03:55]} 28. Kf4 {[%clk 0:03:17.9]} 28... e5+ {[%clk
0:03:54.4]} 29. Qxe5 {[%clk 0:03:07.8]} 29... Bxe5+ {[%clk 0:03:54.3]} 30. Kxe5
{[%clk 0:03:06.5]} 30... Qd6+ {[%clk 0:03:52.5]} 31. Ke4 {[%clk 0:03:05.2]}
31... Q1d5+ {[%clk 0:03:51.5]} 32. Ke3 {[%clk 0:03:03.6]} 32... Qd3# {[%clk
0:03:51.1]} 0-1

[Event "Live Chess"]
[Site "Chess.com"]
[Date "2023.05.21"]
[Round "-"]
[White "Shparii"]
[Black "jimwad"]
[Result "1-0"]
[WhiteElo "1459"]
[BlackElo "1217"]
[TimeControl "300"]
[EndTime "9:01:35 PDT"]
[Termination "Shparii won by resignation"]

1. e4 {[%clk 0:04:58.7]} 1... e5 {[%clk 0:04:58.8]} 2. Nf3 {[%clk 0:04:57.8]}
2... Nc6 {[%clk 0:04:56.5]} 3. Bb5 {[%clk 0:04:56]} 3... Nf6 {[%clk 0:04:54.8]}
4. O-O {[%clk 0:04:54.3]} 4... Bc5 {[%clk 0:04:53.7]} 5. Re1 {[%clk 0:04:52.7]}
5... d6 {[%clk 0:04:52.1]} 6. c3 {[%clk 0:04:48.5]} 6... O-O {[%clk 0:04:48.7]}
7. d4 {[%clk 0:04:47.3]} 7... exd4 {[%clk 0:04:47.5]} 8. cxd4 {[%clk 0:04:47]}
8... Bb4 {[%clk 0:04:46.1]} 9. Nc3 {[%clk 0:04:46.6]} 9... Bg4 {[%clk
0:04:35.5]} 10. e5 {[%clk 0:04:33.3]} 10... dxe5 {[%clk 0:04:34]} 11. dxe5
{[%clk 0:04:29.7]} 11... Qxd1 {[%clk 0:04:32.1]} 12. Rxd1 {[%clk 0:04:27.5]}
12... Nxe5 {[%clk 0:04:27.4]} 13. Nxe5 {[%clk 0:04:24.7]} 13... Bxd1 {[%clk
0:04:25.5]} 14. Nxd1 {[%clk 0:04:22.2]} 14... Rad8 {[%clk 0:04:19.7]} 15. Ne3
{[%clk 0:04:12.2]} 15... c6 {[%clk 0:04:16.9]} 16. Be2 {[%clk 0:04:07.4]} 16...
Ne4 {[%clk 0:04:07.1]} 17. a3 {[%clk 0:04:01]} 17... Bd2 {[%clk 0:04:05.2]} 18.
Bxd2 {[%clk 0:03:56.2]} 18... Rxd2 {[%clk 0:03:58.3]} 19. Bf3 {[%clk 0:03:48.6]}
19... Nxf2 {[%clk 0:03:52.3]} 20. N5c4 {[%clk 0:03:35]} 20... Rxb2 {[%clk
0:02:50.2]} 21. Nxb2 {[%clk 0:03:33.3]} 1-0

[Event "Live Chess"]
[Site "Chess.com"]
[Date "2023.05.21"]
[Round "-"]
[White "SupremeTactician"]
[Black "seabuck"]
[Result "1/2-1/2"]
[WhiteElo "2142"]
[BlackElo "1901"]
[TimeControl "300"]
[EndTime "9:01:47 PDT"]
[Termination "Game drawn by agreement"]

1. e4 {[%clk 0:04:59.4]} 1... e6 {[%clk 0:04:58.5]} 2. d4 {[%clk 0:04:57.9]}
2... d5 {[%clk 0:04:57.6]} 3. Nd2 {[%clk 0:04:57.8]} 3... c5 {[%clk 0:04:55]} 4.
Ngf3 {[%clk 0:04:55.7]} 4... Nc6 {[%clk 0:04:53.1]} 5. Bb5 {[%clk 0:04:52.1]}
5... dxe4 {[%clk 0:04:44.5]} 6. Nxe4 {[%clk 0:04:51]} 6... Qa5+ {[%clk
0:04:34.6]} 7. Nc3 {[%clk 0:04:49.9]} 7... Bd7 {[%clk 0:04:24.3]} 8. Bxc6 {[%clk
0:04:46.9]} 8... Bxc6 {[%clk 0:04:21.4]} 9. Be3 {[%clk 0:04:46.8]} 9... cxd4
{[%clk 0:04:18.4]} 10. Bxd4 {[%clk 0:04:46.1]} 10... Nf6 {[%clk 0:04:12.5]} 11.
Bxf6 {[%clk 0:04:45.1]} 11... gxf6 {[%clk 0:04:10.8]} 12. O-O {[%clk 0:04:45]}
12... Rd8 {[%clk 0:04:08.2]} 13. Qe2 {[%clk 0:04:43.5]} 13... Bb4 {[%clk
0:03:54.7]} 14. Ne4 {[%clk 0:04:41.2]} 14... Ke7 {[%clk 0:03:37.4]} 15. c3
{[%clk 0:04:38.4]} 15... Bc5 {[%clk 0:03:29.4]} 16. b4 {[%clk 0:04:36.7]} 16...
Qb5 {[%clk 0:03:22.8]} 17. Qxb5 {[%clk 0:04:33.3]} 17... Bxb5 {[%clk 0:03:21.6]}
18. Nxc5 {[%clk 0:04:33.2]} 18... Bxf1 {[%clk 0:03:20.3]} 19. Kxf1 {[%clk
0:04:33.1]} 19... b6 {[%clk 0:03:19]} 20. Ne4 {[%clk 0:04:30.8]} 20... f5 {[%clk
0:03:15.8]} 21. Ned2 {[%clk 0:04:29.2]} 21... Rc8 {[%clk 0:03:10.6]} 22. c4
{[%clk 0:04:28]} 22... Rhd8 {[%clk 0:03:06.9]} 23. Ke2 {[%clk 0:04:26.9]} 23...
f6 {[%clk 0:03:06]} 24. Rd1 {[%clk 0:04:25.1]} 24... e5 {[%clk 0:03:04.9]} 25.
Nb3 {[%clk 0:04:24.3]} 25... Rxc4 {[%clk 0:02:58.2]} 1/2-1/2

[Event "Live Chess"]
[Site "Chess.com"]
[Date "2023.05.21"]
[Round "-"]
[White "MaximKris"]
[Black "MartinWalker4"]
[Result "0-1"]
[WhiteElo "1795"]
[BlackElo "2096"]
[TimeControl "300"]
[EndTime "9:01:52 PDT"]
[Termination "MartinWalker4 won by checkmate"]

1. e4 {[%clk 0:04:58.7]} 1... Nf6 {[%clk 0:04:58]} 2. Nc3 {[%clk 0:04:57.2]}
2... d5 {[%clk 0:04:56.1]} 3. exd5 {[%clk 0:04:53.9]} 3... Nxd5 {[%clk
0:04:53.6]} 4. Nxd5 {[%clk 0:04:53.8]} 4... Qxd5 {[%clk 0:04:52.2]} 5. Nf3
{[%clk 0:04:53.7]} 5... Bg4 {[%clk 0:04:50.4]} 6. Bd3 {[%clk 0:04:52.7]} 6...
Bxf3 {[%clk 0:04:48.1]} 7. Qxf3 {[%clk 0:04:52.6]} 7... Qxf3 {[%clk 0:04:47.1]}
8. gxf3 {[%clk 0:04:52.5]} 8... Nc6 {[%clk 0:04:45.9]} 9. O-O {[%clk 0:04:52.4]}
9... Ne5 {[%clk 0:04:43.5]} 10. Kg2 {[%clk 0:04:51.6]} 10... Nxd3 {[%clk
0:04:41.6]} 11. cxd3 {[%clk 0:04:51.5]} 11... O-O-O {[%clk 0:04:39.9]} 12. Re1
{[%clk 0:04:50.9]} 12... Rxd3 {[%clk 0:04:38.5]} 13. Re4 {[%clk 0:04:50.8]}
13... e6 {[%clk 0:04:36.2]} 14. Rc4 {[%clk 0:04:49.4]} 14... Bd6 {[%clk
0:04:34.2]} 15. Rc3 {[%clk 0:04:48.8]} 15... Rxc3 {[%clk 0:04:32.2]} 16. dxc3
{[%clk 0:04:48.7]} 16... Rd8 {[%clk 0:04:29]} 17. Be3 {[%clk 0:04:48.6]} 17...
a6 {[%clk 0:04:26.9]} 18. Re1 {[%clk 0:04:48.1]} 18... Be7 {[%clk 0:04:24.6]}
19. f4 {[%clk 0:04:47.8]} 19... Rd3 {[%clk 0:04:22.4]} 20. Bd4 {[%clk
0:04:47.7]} 20... g6 {[%clk 0:04:18.6]} 21. f5 {[%clk 0:04:47.4]} 21... gxf5
{[%clk 0:04:16.9]} 22. Re3 {[%clk 0:04:47.1]} 22... Rxe3 {[%clk 0:04:15.5]} 23.
Bxe3 {[%clk 0:04:47]} 23... e5 {[%clk 0:04:14.4]} 24. Kf3 {[%clk 0:04:46.9]}
24... Kd7 {[%clk 0:04:13.4]} 25. Bd2 {[%clk 0:04:46]} 25... Ke6 {[%clk
0:04:12.1]} 26. Ke3 {[%clk 0:04:45.9]} 26... Bg5+ {[%clk 0:04:10.1]} 27. Kd3
{[%clk 0:04:45.6]} 27... Bxd2 {[%clk 0:04:07.5]} 28. Kxd2 {[%clk 0:04:45.5]}
28... e4 {[%clk 0:04:06.3]} 29. Ke2 {[%clk 0:04:45.4]} 29... Ke5 {[%clk
0:04:05.5]} 30. Ke3 {[%clk 0:04:45.3]} 30... f4+ {[%clk 0:04:04.7]} 31. Ke2
{[%clk 0:04:45.2]} 31... f5 {[%clk 0:04:02.3]} 32. b3 {[%clk 0:04:42.5]} 32...
f3+ {[%clk 0:03:59.9]} 33. Ke3 {[%clk 0:04:41.1]} 33... f4+ {[%clk 0:03:58.8]}
34. Kd2 {[%clk 0:04:41]} 34... e3+ {[%clk 0:03:57.6]} 35. fxe3 {[%clk
0:04:40.9]} 35... f2 {[%clk 0:03:56.1]} 36. Ke2 {[%clk 0:04:40.8]} 36... fxe3
{[%clk 0:03:54.4]} 37. c4 {[%clk 0:04:39.5]} 37... Ke4 {[%clk 0:03:53.3]} 38.
Kf1 {[%clk 0:04:38.9]} 38... Kf3 {[%clk 0:03:51.6]} 39. c5 {[%clk 0:04:38.8]}
39... e2# {[%clk 0:03:50.6]} 0-1

[Event "Live Chess"]
[Site "Chess.com"]
[Date "2023.05.21"]
[Round "-"]
[White "onemoretime1975"]
[Black "WilliamofOrange16th"]
[Result "1/2-1/2"]
[WhiteElo "1850"]
[BlackElo "1846"]
[TimeControl "300"]
[EndTime "9:02:03 PDT"]
[Termination "Game drawn by agreement"]

1. e4 {[%clk 0:04:58.6]} 1... d6 {[%clk 0:04:59.4]} 2. g3 {[%clk 0:04:51.6]}
2... Nf6 {[%clk 0:04:58.4]} 3. Bg2 {[%clk 0:04:50.6]} 3... e5 {[%clk 0:04:58.1]}
4. d3 {[%clk 0:04:48.4]} 4... Be7 {[%clk 0:04:57.1]} 5. c3 {[%clk 0:04:45.4]}
5... c6 {[%clk 0:04:56.4]} 6. Nf3 {[%clk 0:04:43.9]} 6... O-O {[%clk 0:04:56]}
7. O-O {[%clk 0:04:42.2]} 7... Qc7 {[%clk 0:04:53.2]} 8. h3 {[%clk 0:04:37.4]}
8... h6 {[%clk 0:04:50.1]} 9. Be3 {[%clk 0:04:35.1]} 9... Be6 {[%clk 0:04:49.3]}
10. Nbd2 {[%clk 0:04:33]} 10... d5 {[%clk 0:04:48.3]} 11. exd5 {[%clk
0:04:25.5]} 11... cxd5 {[%clk 0:04:48.2]} 12. d4 {[%clk 0:04:19.6]} 12... e4
{[%clk 0:04:41.3]} 13. Ne5 {[%clk 0:04:11.6]} 13... Bd6 {[%clk 0:04:38.8]} 14.
f4 {[%clk 0:04:08.1]} 14... Bc8 {[%clk 0:04:18]} 15. g4 {[%clk 0:03:55.7]} 15...
Nh7 {[%clk 0:04:13.4]} 16. h4 {[%clk 0:03:40]} 16... Be7 {[%clk 0:04:08.9]} 17.
g5 {[%clk 0:03:35.5]} 17... hxg5 {[%clk 0:04:08.1]} 18. hxg5 {[%clk 0:03:31.1]}
18... Bf5 {[%clk 0:04:01]} 19. Qh5 {[%clk 0:03:22.3]} 19... Qd6 {[%clk
0:03:34.5]} 20. Bh3 {[%clk 0:03:10]} 20... g6 {[%clk 0:03:33.5]} 21. Qh4 {[%clk
0:03:04.4]} 21... Qe6 {[%clk 0:03:29]} 22. Bxf5 {[%clk 0:02:57.4]} 22... Qxf5
{[%clk 0:03:28.9]} 23. Qg4 {[%clk 0:02:51]} 23... Nc6 {[%clk 0:03:10.5]} 24.
Qxf5 {[%clk 0:02:36]} 24... gxf5 {[%clk 0:03:10.4]} 25. g6 {[%clk 0:02:28.7]}
25... fxg6 {[%clk 0:03:09.1]} 26. Nxg6 {[%clk 0:02:27.2]} 26... Rf7 {[%clk
0:03:07.2]} 27. Rf2 {[%clk 0:02:17]} 27... Rg7 {[%clk 0:03:05.5]} 28. Rg2 {[%clk
0:02:14.4]} 28... Kf7 {[%clk 0:03:03.1]} 29. Ne5+ {[%clk 0:02:03.8]} 29... Nxe5
{[%clk 0:03:02.3]} 30. dxe5 {[%clk 0:01:56.7]} 30... Rag8 {[%clk 0:02:57.6]} 31.
Rxg7+ {[%clk 0:01:53.5]} 31... Rxg7+ {[%clk 0:02:57.5]} 32. Kh1 {[%clk
0:01:24.7]} 32... b6 {[%clk 0:02:57.4]} 33. Rg1 {[%clk 0:01:22]} 33... Nf8
{[%clk 0:02:50.2]} 34. Nb3 {[%clk 0:01:15.6]} 34... Ne6 {[%clk 0:02:46.7]} 35.
Rxg7+ {[%clk 0:01:05.1]} 35... Kxg7 {[%clk 0:02:45.3]} 36. Nd4 {[%clk
0:01:04.1]} 36... Nxd4 {[%clk 0:02:41.4]} 37. cxd4 {[%clk 0:01:00.3]} 37... Kg6
{[%clk 0:02:25.3]} 38. Kg2 {[%clk 0:00:59.1]} 38... Kh5 {[%clk 0:02:24.7]} 39.
Kh3 {[%clk 0:00:58.1]} 39... b5 {[%clk 0:02:16.3]} 40. a3 {[%clk 0:00:54.6]}
40... b4 {[%clk 0:02:06.2]} 41. a4 {[%clk 0:00:50]} 41... a6 {[%clk 0:02:02.8]}
42. b3 {[%clk 0:00:48.4]} 42... a5 {[%clk 0:01:58.1]} 43. Bf2 {[%clk 0:00:45.4]}
1/2-1/2

[Event "Live Chess"]
[Site "Chess.com"]
[Date "2023.05.21"]
[Round "-"]
[White "gmnorfolk"]
[Black "luckywookie"]
[Result "1-0"]
[WhiteElo "2131"]
[BlackElo "838"]
[TimeControl "300"]
[EndTime "9:02:11 PDT"]
[Termination "gmnorfolk won by checkmate"]

1. d4 {[%clk 0:04:58.3]} 1... d5 {[%clk 0:04:54]} 2. c4 {[%clk 0:04:55.2]} 2...
c6 {[%clk 0:04:53.1]} 3. Nf3 {[%clk 0:04:49]} 3... Nf6 {[%clk 0:04:52]} 4. Nc3
{[%clk 0:04:47.9]} 4... e6 {[%clk 0:04:47.8]} 5. cxd5 {[%clk 0:04:45.6]} 5...
exd5 {[%clk 0:04:41.4]} 6. Bg5 {[%clk 0:04:43.3]} 6... Nbd7 {[%clk 0:04:38.5]}
7. e3 {[%clk 0:04:42]} 7... Bd6 {[%clk 0:04:36.9]} 8. Bd3 {[%clk 0:04:40.6]}
8... h6 {[%clk 0:04:13.1]} 9. Bh4 {[%clk 0:04:38.9]} 9... g5 {[%clk 0:04:08.2]}
10. Bg3 {[%clk 0:04:38]} 10... Bxg3 {[%clk 0:03:59.5]} 11. hxg3 {[%clk
0:04:36.8]} 11... Qe7 {[%clk 0:03:53.3]} 12. Nxg5 {[%clk 0:04:35.6]} 12... c5
{[%clk 0:03:35.1]} 13. Nf3 {[%clk 0:04:34]} 13... Ne4 {[%clk 0:03:33.4]} 14.
Nxd5 {[%clk 0:04:32.4]} 14... Qf8 {[%clk 0:03:14.6]} 15. Bxe4 {[%clk 0:04:29.8]}
15... cxd4 {[%clk 0:03:09.2]} 16. Nc7+ {[%clk 0:04:28.9]} 16... Kd8 {[%clk
0:03:06.9]} 17. Nxa8 {[%clk 0:04:27.9]} 17... Qb4+ {[%clk 0:03:02.9]} 18. Kf1
{[%clk 0:04:26.1]} 18... b6 {[%clk 0:02:59.4]} 19. Qc1 {[%clk 0:04:24.5]} 19...
Ba6+ {[%clk 0:02:56.5]} 20. Kg1 {[%clk 0:04:23.3]} 20... Nc5 {[%clk 0:02:55.1]}
21. Bd5 {[%clk 0:04:19.5]} 21... Qb5 {[%clk 0:02:48.2]} 22. exd4 {[%clk
0:04:15.9]} 22... Nd3 {[%clk 0:02:26.7]} 23. Qc7+ {[%clk 0:04:14.6]} 23... Ke8
{[%clk 0:02:24.6]} 24. Qxf7+ {[%clk 0:04:11.6]} 24... Kd8 {[%clk 0:02:22.3]} 25.
Qf6+ {[%clk 0:04:07.3]} 25... Kc8 {[%clk 0:02:15]} 26. Qxh8+ {[%clk 0:04:03.1]}
26... Kd7 {[%clk 0:02:09.2]} 27. Qg7+ {[%clk 0:03:59.4]} 27... Kd6 {[%clk
0:02:07.7]} 28. Qc7+ {[%clk 0:03:55.8]} 28... Kxd5 {[%clk 0:02:05.9]} 29. Rh5+
{[%clk 0:03:54.6]} 29... Ne5 {[%clk 0:02:01.1]} 30. Rxe5# {[%clk 0:03:52.8]} 1-0

[Event "Live Chess"]
[Site "Chess.com"]
[Date "2023.05.21"]
[Round "-"]
[White "Pablo_dmp"]
[Black "Grookey2012"]
[Result "1-0"]
[WhiteElo "1826"]
[BlackElo "568"]
[TimeControl "300"]
[EndTime "9:02:32 PDT"]
[Termination "Pablo_dmp won by resignation"]

1. e4 {[%clk 0:04:59]} 1... d5 {[%clk 0:04:41.8]} 2. exd5 {[%clk 0:04:57.4]}
2... Qxd5 {[%clk 0:04:40.6]} 3. Nc3 {[%clk 0:04:57.3]} 3... Qe6+ {[%clk
0:04:39.5]} 4. Qe2 {[%clk 0:04:55.1]} 4... Qe5 {[%clk 0:04:35]} 5. Qxe5 {[%clk
0:04:53]} 5... c6 {[%clk 0:04:33.5]} 6. Nf3 {[%clk 0:04:48.1]} 6... c5 {[%clk
0:04:33.4]} 7. Qd5 {[%clk 0:04:43.5]} 7... c4 {[%clk 0:04:33.2]} 8. Bxc4 {[%clk
0:04:41.9]} 8... Be6 {[%clk 0:04:31.2]} 9. Bb5+ {[%clk 0:04:39.1]} 9... Nc6
{[%clk 0:04:28.5]} 10. Bxc6+ {[%clk 0:04:38.2]} 10... bxc6 {[%clk 0:04:26.7]}
11. Qxc6+ {[%clk 0:04:38.1]} 11... Kd8 {[%clk 0:04:24.4]} 12. Qxa8+ {[%clk
0:04:38]} 12... Kc7 {[%clk 0:04:22.5]} 13. Qxa7+ {[%clk 0:04:37.9]} 1-0

[Event "Live Chess"]
[Site "Chess.com"]
[Date "2023.05.21"]
[Round "-"]
[White "NotHarryV"]
[Black "Long1968"]
[Result "1-0"]
[WhiteElo "1517"]
[BlackElo "980"]
[TimeControl "300"]
[EndTime "9:02:44 PDT"]
[Termination "NotHarryV won on time"]

1. d4 {[%clk 0:04:59.6]} 1... e6 {[%clk 0:04:57.5]} 2. c4 {[%clk 0:04:58.4]}
2... d5 {[%clk 0:04:56.1]} 3. Nf3 {[%clk 0:04:57.7]} 3... Nf6 {[%clk 0:04:54.2]}
4. g3 {[%clk 0:04:56.9]} 4... Bb4+ {[%clk 0:04:51.5]} 5. Bd2 {[%clk 0:04:54.4]}
5... Qe7 {[%clk 0:04:48.7]} 6. cxd5 {[%clk 0:04:51.1]} 6... Nxd5 {[%clk
0:04:45.3]} 7. Bg2 {[%clk 0:04:49]} 7... a5 {[%clk 0:04:39.3]} 8. O-O {[%clk
0:04:47.7]} 8... O-O {[%clk 0:04:27.6]} 9. e4 {[%clk 0:04:42.8]} 9... Nf6 {[%clk
0:04:07.4]} 10. Qc2 {[%clk 0:04:41]} 10... Nc6 {[%clk 0:03:55.5]} 11. Bg5 {[%clk
0:04:36.8]} 11... h6 {[%clk 0:03:37.9]} 12. Bxf6 {[%clk 0:04:35.9]} 12... Qxf6
{[%clk 0:03:33.8]} 13. e5 {[%clk 0:04:35.5]} 13... Qf5 {[%clk 0:03:26]} 14. Qxf5
{[%clk 0:04:28.4]} 14... exf5 {[%clk 0:03:22.1]} 15. a3 {[%clk 0:04:25.6]} 15...
Be7 {[%clk 0:03:15]} 16. Nc3 {[%clk 0:04:21.2]} 16... Rd8 {[%clk 0:03:09.3]} 17.
Rfd1 {[%clk 0:04:18.6]} 17... Be6 {[%clk 0:02:54.5]} 18. d5 {[%clk 0:04:06.6]}
18... Na7 {[%clk 0:02:08.5]} 19. dxe6 {[%clk 0:04:05.4]} 19... fxe6 {[%clk
0:02:04]} 20. Rxd8+ {[%clk 0:03:52.5]} 20... Rxd8 {[%clk 0:02:00.8]} 21. Rd1
{[%clk 0:03:46.8]} 21... Rxd1+ {[%clk 0:01:51.3]} 22. Nxd1 {[%clk 0:03:46.7]}
22... Nc6 {[%clk 0:01:44]} 23. Nc3 {[%clk 0:03:33.8]} 23... g5 {[%clk
0:01:39.6]} 24. Nb5 {[%clk 0:03:27.9]} 24... g4 {[%clk 0:01:29]} 25. Nfd4 {[%clk
0:03:26.3]} 25... Nxe5 {[%clk 0:01:08.2]} 26. Nxe6 {[%clk 0:03:14.1]} 26... Kf7
{[%clk 0:01:03.2]} 27. Nf4 {[%clk 0:03:08.5]} 27... c6 {[%clk 0:00:51.2]} 28.
Nd4 {[%clk 0:03:04.8]} 28... Kf6 {[%clk 0:00:38.9]} 29. h3 {[%clk 0:02:45]}
29... Bc5 {[%clk 0:00:28.9]} 30. Nb3 {[%clk 0:02:36]} 30... Bb6 {[%clk
0:00:17.4]} 31. hxg4 {[%clk 0:02:33.8]} 31... fxg4 {[%clk 0:00:09.8]} 32. a4
{[%clk 0:02:23.7]} 1-0

[Event "Live Chess"]
[Site "Chess.com"]
[Date "2023.05.21"]
[Round "-"]
[White "Doge_Dandolo"]
[Black "EdenHazard8"]
[Result "1-0"]
[WhiteElo "1877"]
[BlackElo "1932"]
[TimeControl "300"]
[EndTime "9:02:44 PDT"]
[Termination "Doge_Dandolo won by checkmate"]

1. Nf3 {[%clk 0:04:58.6]} 1... d5 {[%clk 0:04:59.1]} 2. c4 {[%clk 0:04:56.1]}
2... d4 {[%clk 0:04:57.9]} 3. b4 {[%clk 0:04:54.5]} 3... e5 {[%clk 0:04:56.3]}
4. Qa4+ {[%clk 0:04:24.5]} 4... Bd7 {[%clk 0:04:53.8]} 5. b5 {[%clk 0:04:20.3]}
5... Bc5 {[%clk 0:04:51.3]} 6. d3 {[%clk 0:04:15.3]} 6... f5 {[%clk 0:04:49.2]}
7. g3 {[%clk 0:04:07.8]} 7... e4 {[%clk 0:04:47.7]} 8. Nfd2 {[%clk 0:04:04.8]}
8... e3 {[%clk 0:04:45.7]} 9. fxe3 {[%clk 0:04:02.8]} 9... dxe3 {[%clk
0:04:45.6]} 10. Nf3 {[%clk 0:04:01.8]} 10... Nf6 {[%clk 0:04:42.9]} 11. Bg2
{[%clk 0:03:57.6]} 11... Ng4 {[%clk 0:04:41.7]} 12. O-O {[%clk 0:03:53.6]} 12...
O-O {[%clk 0:04:39.6]} 13. Na3 {[%clk 0:03:50]} 13... a6 {[%clk 0:04:37.7]} 14.
Nc2 {[%clk 0:03:48.9]} 14... f4 {[%clk 0:04:32.2]} 15. gxf4 {[%clk 0:03:42.1]}
15... Rxf4 {[%clk 0:04:32.1]} 16. d4 {[%clk 0:03:39.9]} 16... Bd6 {[%clk
0:04:30.3]} 17. Nxe3 {[%clk 0:03:37.1]} 17... Nxe3 {[%clk 0:04:28.4]} 18. Bxe3
{[%clk 0:03:34.6]} 18... Rg4 {[%clk 0:04:27.6]} 19. c5 {[%clk 0:03:31.7]} 19...
Qe8 {[%clk 0:04:25]} 20. Qb3+ {[%clk 0:03:23.8]} 20... Be6 {[%clk 0:04:17.1]}
21. d5 {[%clk 0:03:22.6]} 21... Kh8 {[%clk 0:04:16.2]} 22. dxe6 {[%clk
0:03:19.2]} 22... Qg6 {[%clk 0:04:14.8]} 23. Ne1 {[%clk 0:03:11.2]} 23... Bxh2+
{[%clk 0:03:43.1]} 24. Kh1 {[%clk 0:03:08.7]} 24... Qh5 {[%clk 0:03:43]} 25.
Rf8# {[%clk 0:03:06.7]} 1-0